[Event "Titled Tuesday Blitz February 28 Late 2023"]
[White "Sokolin, Leonid"]
[Black "Gascon Del Nogal, Jose Rafael"]
[WhiteFideId "2009161"]
[BlackFideId "3902463"]
[WhiteElo "2394"]
[BlackElo "2473"]
[Result "0-1"]
[Round "07"]
[TimeControl "180+2"]
[Date "2023.02.28"]
[WhiteClock "0:00:40"]
[BlackClock "0:00:43"]

1. e4 {[%clk 0:03:00]}  c5 {[%clk 0:02:55]} 2. Nf3 {[%clk 0:03:00]}  d6 {[%clk 0:02:55]} 3. d4 {[%clk 0:02:59]}  cxd4 {[%clk 0:02:56]} 4. Qxd4 {[%clk 0:02:58]}  Nc6 {[%clk 0:02:55]} 5. Qe3 {[%clk 0:02:55]}  g6 {[%clk 0:02:51]} 6. Be2 {[%clk 0:02:50]}  Bg7 {[%clk 0:02:50]} 7. O-O {[%clk 0:02:48]}  Nf6 {[%clk 0:02:51]} 8. h3 {[%clk 0:02:38]}  O-O {[%clk 0:02:50]} 9. c4 {[%clk 0:02:38]}  Qb6 {[%clk 0:02:48]} 10. Nc3 {[%clk 0:02:34]}  Be6 {[%clk 0:02:43]} 11. Qxb6 {[%clk 0:02:29]}  axb6 {[%clk 0:02:42]} 12. Be3 {[%clk 0:02:29]}  Nd7 {[%clk 0:02:35]} 13. Ng5 {[%clk 0:02:05]}  Bd4 {[%clk 0:02:21]} 14. Nxe6 {[%clk 0:01:57]}  fxe6 {[%clk 0:02:20]} 15. Bg4 {[%clk 0:01:56]}  Kf7 {[%clk 0:02:19]} 16. Bxd4 {[%clk 0:01:52]}  Nxd4 {[%clk 0:02:20]} 17. Rfd1 {[%clk 0:01:52]}  Nc2 {[%clk 0:02:02]} 18. Rac1 {[%clk 0:01:51]}  Nb4 {[%clk 0:02:02]} 19. a3 {[%clk 0:01:48]}  Nc6 {[%clk 0:02:02]} 20. Nb5 {[%clk 0:01:43]}  h5 {[%clk 0:01:40]} 21. Be2 {[%clk 0:01:27]}  Nc5 {[%clk 0:01:33]} 22. b4 {[%clk 0:01:25]}  Nxe4 {[%clk 0:01:13]} 23. g4 {[%clk 0:01:11]}  h4 {[%clk 0:01:02]} 24. f3 {[%clk 0:00:59]}  Ng3 {[%clk 0:01:00]} 25. Bd3 {[%clk 0:00:57]}  Ne5 {[%clk 0:00:59]} 26. Kg2 {[%clk 0:00:54]}  Rac8 {[%clk 0:00:54]} 27. Rc3 {[%clk 0:00:45]}  Nxd3 {[%clk 0:00:45]} 28. Rdxd3 {[%clk 0:00:42]}  Ne2 {[%clk 0:00:44]} 29. Rc2 {[%clk 0:00:40]}  Nf4+ {[%clk 0:00:43]} 0-1


[Site "https://www.chess.com"]

[Event "Titled Tuesday Blitz February 28 Late 2023"]
[White "Sreyas Payyappat"]
[Black "Prem, Pranav"]
[WhiteFideId "46674969"]
[BlackFideId "30901057"]
[WhiteElo "2083"]
[BlackElo "1970"]
[Result "0-1"]
[Round "07"]
[TimeControl "180+2"]
[Date "2023.02.28"]
[WhiteClock "0:00:06"]
[BlackClock "0:00:09"]

1. e4 {[%clk 0:03:00]}  c5 {[%clk 0:02:58]} 2. Nf3 {[%clk 0:02:56]}  d6 {[%clk 0:02:57]} 3. d4 {[%clk 0:02:55]}  cxd4 {[%clk 0:02:58]} 4. Nxd4 {[%clk 0:02:56]}  Nf6 {[%clk 0:02:57]} 5. Nc3 {[%clk 0:02:54]}  a6 {[%clk 0:02:55]} 6. h4 {[%clk 0:02:49]}  e5 {[%clk 0:02:50]} 7. Nb3 {[%clk 0:02:49]}  Be7 {[%clk 0:02:48]} 8. Bg5 {[%clk 0:02:49]}  Be6 {[%clk 0:02:45]} 9. Bxf6 {[%clk 0:02:49]}  Bxf6 {[%clk 0:02:46]} 10. g3 {[%clk 0:02:47]}  O-O {[%clk 0:02:38]} 11. Qd2 {[%clk 0:02:46]}  Nc6 {[%clk 0:02:30]} 12. O-O-O {[%clk 0:02:45]}  a5 {[%clk 0:02:19]} 13. Qxd6 {[%clk 0:02:40]}  Qb6 {[%clk 0:02:19]} 14. Qc5 {[%clk 0:02:34]}  Qc7 {[%clk 0:02:14]} 15. Nd5 {[%clk 0:02:28]}  Qb8 {[%clk 0:01:59]} 16. Nxf6+ {[%clk 0:02:27]}  gxf6 {[%clk 0:02:00]} 17. Bc4 {[%clk 0:02:16]}  a4 {[%clk 0:01:55]} 18. Bxe6 {[%clk 0:02:13]}  fxe6 {[%clk 0:01:53]} 19. Nd2 {[%clk 0:02:12]}  a3 {[%clk 0:01:48]} 20. b3 {[%clk 0:02:09]}  Nd4 {[%clk 0:01:41]} 21. Nc4 {[%clk 0:01:46]}  b5 {[%clk 0:01:24]} 22. Nb6 {[%clk 0:01:38]}  Qa7 {[%clk 0:01:09]} 23. b4 {[%clk 0:01:09]}  Rab8 {[%clk 0:01:00]} 24. c3 {[%clk 0:01:02]}  Rxb6 {[%clk 0:00:39]} 25. cxd4 {[%clk 0:00:59]}  Qb7 {[%clk 0:00:36]} 26. d5 {[%clk 0:00:56]}  Rc8 {[%clk 0:00:27]} 27. Kb1 {[%clk 0:00:54]}  Rxc5 {[%clk 0:00:26]} 28. bxc5 {[%clk 0:00:55]}  Ra6 {[%clk 0:00:25]} 29. c6 {[%clk 0:00:27]}  Qc7 {[%clk 0:00:13]} 30. d6 {[%clk 0:00:18]}  Qxc6 {[%clk 0:00:14]} 31. d7 {[%clk 0:00:18]}  Qxe4+ {[%clk 0:00:14]} 32. Ka1 {[%clk 0:00:16]}  Ra8 {[%clk 0:00:14]} 33. d8=Q+ {[%clk 0:00:15]}  Rxd8 {[%clk 0:00:15]} 34. Rxd8+ {[%clk 0:00:15]}  Kf7 {[%clk 0:00:16]} 35. Rhd1 {[%clk 0:00:10]}  Qe2 {[%clk 0:00:15]} 36. R8d2 {[%clk 0:00:09]}  Qc4 {[%clk 0:00:14]} 37. Kb1 {[%clk 0:00:02]}  b4 {[%clk 0:00:13]} 38. Rc2 {[%clk 0:00:02]}  Qe4 {[%clk 0:00:12]} 39. Kc1 {[%clk 0:00:02]}  f5 {[%clk 0:00:12]} 40. Rc7+ {[%clk 0:00:02]}  Kg6 {[%clk 0:00:12]} 41. Rc2 {[%clk 0:00:03]}  f4 {[%clk 0:00:10]} 42. Rd6 {[%clk 0:00:03]}  Kf5 {[%clk 0:00:09]} 43. g4+ {[%clk 0:00:03]}  Kxg4 {[%clk 0:00:09]} 44. Rxe6 {[%clk 0:00:04]}  Qh1+ {[%clk 0:00:08]} 45. Kd2 {[%clk 0:00:04]}  Qd5+ {[%clk 0:00:09]} 46. Ke2 {[%clk 0:00:04]}  Qxe6 {[%clk 0:00:09]} 47. f3+ {[%clk 0:00:05]}  Kg3 {[%clk 0:00:09]} 48. Rc8 {[%clk 0:00:06]}  Qxc8 {[%clk 0:00:09]} 0-1


[Site "https://www.chess.com"]

[Event "Titled Tuesday Blitz February 28 Late 2023"]
[White "Krishnan, Varun"]
[Black "Ansh M Shah"]
[WhiteFideId "5054508"]
[BlackFideId "25033379"]
[WhiteElo "2537"]
[BlackElo "2084"]
[Result "1/2-1/2"]
[Round "07"]
[TimeControl "180+2"]
[Date "2023.02.28"]
[WhiteClock "0:00:09"]
[BlackClock "0:00:14"]

1. e4 {[%clk 0:03:00]}  c6 {[%clk 0:02:59]} 2. d4 {[%clk 0:02:57]}  d5 {[%clk 0:03:00]} 3. exd5 {[%clk 0:02:57]}  cxd5 {[%clk 0:03:00]} 4. c4 {[%clk 0:02:58]}  Nf6 {[%clk 0:02:59]} 5. Nc3 {[%clk 0:02:58]}  Nc6 {[%clk 0:03:00]} 6. Bg5 {[%clk 0:02:55]}  dxc4 {[%clk 0:03:00]} 7. Bxc4 {[%clk 0:02:54]}  h6 {[%clk 0:03:00]} 8. Bh4 {[%clk 0:02:52]}  Qxd4 {[%clk 0:03:01]} 9. Qxd4 {[%clk 0:02:52]}  Nxd4 {[%clk 0:03:01]} 10. O-O-O {[%clk 0:02:51]}  g5 {[%clk 0:03:02]} 11. Bg3 {[%clk 0:02:18]}  Ne6 {[%clk 0:02:33]} 12. Nf3 {[%clk 0:01:29]}  Bg7 {[%clk 0:02:22]} 13. h4 {[%clk 0:01:23]}  g4 {[%clk 0:01:55]} 14. Ne5 {[%clk 0:01:18]}  O-O {[%clk 0:01:56]} 15. Nd5 {[%clk 0:01:05]}  Nxd5 {[%clk 0:01:51]} 16. Bxd5 {[%clk 0:01:06]}  Nc5 {[%clk 0:01:16]} 17. Rhe1 {[%clk 0:00:46]}  Bf5 {[%clk 0:01:07]} 18. f3 {[%clk 0:00:13]}  Rac8 {[%clk 0:00:57]} 19. Kd2 {[%clk 0:00:09]}  gxf3 {[%clk 0:00:23]} 20. Bxf3 {[%clk 0:00:04]}  Ne6 {[%clk 0:00:16]} 21. Ke2 {[%clk 0:00:02]}  Rc2+ {[%clk 0:00:12]} 22. Rd2 {[%clk 0:00:02]}  Nd4+ {[%clk 0:00:13]} 23. Kd1 {[%clk 0:00:03]}  Rxd2+ {[%clk 0:00:10]} 24. Kxd2 {[%clk 0:00:03]}  Nxf3+ {[%clk 0:00:10]} 25. gxf3 {[%clk 0:00:04]}  Rd8+ {[%clk 0:00:10]} 26. Ke2 {[%clk 0:00:04]}  Rc8 {[%clk 0:00:10]} 27. Rd1 {[%clk 0:00:04]}  Rc2+ {[%clk 0:00:10]} 28. Rd2 {[%clk 0:00:04]}  Rc8 {[%clk 0:00:09]} 29. b3 {[%clk 0:00:03]}  Bf6 {[%clk 0:00:09]} 30. Nc4 {[%clk 0:00:02]}  b5 {[%clk 0:00:08]} 31. Ne3 {[%clk 0:00:03]}  Be6 {[%clk 0:00:08]} 32. Nd5 {[%clk 0:00:02]}  Kg7 {[%clk 0:00:04]} 33. Nxf6 {[%clk 0:00:02]}  Kxf6 {[%clk 0:00:05]} 34. Bf4 {[%clk 0:00:02]}  h5 {[%clk 0:00:06]} 35. Bg5+ {[%clk 0:00:02]}  Kg6 {[%clk 0:00:05]} 36. Be3 {[%clk 0:00:03]}  Bf5 {[%clk 0:00:05]} 37. Kf2 {[%clk 0:00:03]}  Rc2 {[%clk 0:00:05]} 38. Rxc2 {[%clk 0:00:03]}  Bxc2 {[%clk 0:00:06]} 39. Bxa7 {[%clk 0:00:03]}  b4 {[%clk 0:00:07]} 40. Bc5 {[%clk 0:00:02]}  Bb1 {[%clk 0:00:07]} 41. Bxb4 {[%clk 0:00:01]}  Bxa2 {[%clk 0:00:08]} 42. Bxe7 {[%clk 0:00:02]}  Bxb3 {[%clk 0:00:08]} 43. Kg3 {[%clk 0:00:03]}  Be6 {[%clk 0:00:08]} 44. f4 {[%clk 0:00:04]}  Kf5 {[%clk 0:00:08]} 45. Bc5 {[%clk 0:00:04]}  Bd5 {[%clk 0:00:08]} 46. Ba7 {[%clk 0:00:05]}  Ke4 {[%clk 0:00:07]} 47. Bb8 {[%clk 0:00:06]}  f5 {[%clk 0:00:07]} 48. Bc7 {[%clk 0:00:06]}  Kd3 {[%clk 0:00:08]} 49. Bb8 {[%clk 0:00:07]}  Ke2 {[%clk 0:00:09]} 50. Bc7 {[%clk 0:00:07]}  Be4 {[%clk 0:00:10]} 51. Bb8 {[%clk 0:00:08]}  Kf1 {[%clk 0:00:10]} 52. Bc7 {[%clk 0:00:08]}  Ke2 {[%clk 0:00:11]} 53. Bb8 {[%clk 0:00:09]}  Bf3 {[%clk 0:00:10]} 54. Bc7 {[%clk 0:00:09]}  Bg4 {[%clk 0:00:11]} 55. Bb8 {[%clk 0:00:09]}  Kd3 {[%clk 0:00:12]} 56. Bc7 {[%clk 0:00:09]}  Kc4 {[%clk 0:00:13]} 57. Kf2 {[%clk 0:00:09]}  Kd3 {[%clk 0:00:13]} 58. Bb8 {[%clk 0:00:08]}  Ke4 {[%clk 0:00:14]} 59. Bc7 {[%clk 0:00:08]}  Kd3 {[%clk 0:00:14]} 60. Bb8 {[%clk 0:00:09]} 1/2-1/2


[Site "https://www.chess.com"]

[Event "Titled Tuesday Blitz February 28 Late 2023"]
[White "Mendez Fortes, Eduardo Jesus"]
[Black "Kostiukov, Alexandr"]
[WhiteFideId "3502376"]
[BlackFideId "14108100"]
[WhiteElo "2307"]
[BlackElo "2202"]
[Result "1-0"]
[Round "07"]
[TimeControl "180+2"]
[Date "2023.02.28"]
[WhiteClock "0:00:18"]
[BlackClock "0:00:01"]

1. e4 {[%clk 0:02:59]}  c5 {[%clk 0:02:59]} 2. Nf3 {[%clk 0:03:00]}  g6 {[%clk 0:02:59]} 3. d4 {[%clk 0:02:59]}  cxd4 {[%clk 0:03:00]} 4. Nxd4 {[%clk 0:03:00]}  Bg7 {[%clk 0:03:00]} 5. c4 {[%clk 0:03:00]}  Nc6 {[%clk 0:03:00]} 6. Be3 {[%clk 0:03:00]}  Nf6 {[%clk 0:03:00]} 7. Nc3 {[%clk 0:03:00]}  O-O {[%clk 0:02:59]} 8. Be2 {[%clk 0:03:00]}  Nxd4 {[%clk 0:02:57]} 9. Bxd4 {[%clk 0:03:01]}  Qa5 {[%clk 0:02:58]} 10. O-O {[%clk 0:03:00]}  d6 {[%clk 0:02:58]} 11. f3 {[%clk 0:02:57]}  Be6 {[%clk 0:02:58]} 12. Rc1 {[%clk 0:02:56]}  a6 {[%clk 0:02:55]} 13. a3 {[%clk 0:02:51]}  Rfc8 {[%clk 0:02:55]} 14. Nd5 {[%clk 0:02:40]}  Bxd5 {[%clk 0:02:47]} 15. exd5 {[%clk 0:02:40]}  Nd7 {[%clk 0:02:39]} 16. Bxg7 {[%clk 0:02:37]}  Kxg7 {[%clk 0:02:40]} 17. Qd4+ {[%clk 0:02:36]}  f6 {[%clk 0:02:37]} 18. f4 {[%clk 0:02:34]}  Qb6 {[%clk 0:02:28]} 19. Qxb6 {[%clk 0:02:31]}  Nxb6 {[%clk 0:02:29]} 20. b3 {[%clk 0:02:31]}  a5 {[%clk 0:02:28]} 21. a4 {[%clk 0:02:29]}  Nd7 {[%clk 0:02:18]} 22. Bg4 {[%clk 0:02:28]}  f5 {[%clk 0:02:18]} 23. Bf3 {[%clk 0:02:28]}  Nc5 {[%clk 0:02:15]} 24. Rc3 {[%clk 0:02:28]}  b6 {[%clk 0:02:09]} 25. Re1 {[%clk 0:02:27]}  Rc7 {[%clk 0:02:09]} 26. Rce3 {[%clk 0:02:26]}  Kf6 {[%clk 0:02:07]} 27. Kf2 {[%clk 0:02:26]}  h5 {[%clk 0:02:01]} 28. g3 {[%clk 0:02:25]}  Rh8 {[%clk 0:01:52]} 29. h3 {[%clk 0:02:25]}  Rh7 {[%clk 0:01:49]} 30. Ke2 {[%clk 0:02:25]}  Rf7 {[%clk 0:01:26]} 31. Kd2 {[%clk 0:02:24]}  Kg7 {[%clk 0:01:26]} 32. Kc3 {[%clk 0:02:22]}  Kf6 {[%clk 0:01:26]} 33. Kd4 {[%clk 0:02:18]}  Na6 {[%clk 0:01:13]} 34. g4 {[%clk 0:02:14]}  hxg4 {[%clk 0:01:09]} 35. hxg4 {[%clk 0:02:15]}  fxg4 {[%clk 0:01:04]} 36. Bxg4 {[%clk 0:02:16]}  Kg7 {[%clk 0:01:04]} 37. Rf3 {[%clk 0:02:14]}  Ra7 {[%clk 0:00:43]} 38. Be6 {[%clk 0:02:12]}  Rf6 {[%clk 0:00:41]} 39. f5 {[%clk 0:02:12]}  Nc5 {[%clk 0:00:38]} 40. Rg1 {[%clk 0:02:06]}  Ra8 {[%clk 0:00:33]} 41. Rfg3 {[%clk 0:02:02]}  Rh8 {[%clk 0:00:26]} 42. Rxg6+ {[%clk 0:01:58]}  Rxg6 {[%clk 0:00:26]} 43. Rxg6+ {[%clk 0:01:59]}  Kf8 {[%clk 0:00:27]} 44. Rg3 {[%clk 0:01:48]}  Ke8 {[%clk 0:00:16]} 45. Rg4 {[%clk 0:01:04]}  Kd8 {[%clk 0:00:14]} 46. Rg3 {[%clk 0:00:59]}  Rh4+ {[%clk 0:00:13]} 47. Ke3 {[%clk 0:00:56]}  Nxb3 {[%clk 0:00:13]} 48. Rg8+ {[%clk 0:00:54]}  Kc7 {[%clk 0:00:13]} 49. Rg7 {[%clk 0:00:51]}  Kd8 {[%clk 0:00:13]} 50. Rg8+ {[%clk 0:00:50]}  Kc7 {[%clk 0:00:13]} 51. Ra8 {[%clk 0:00:48]}  Nc5 {[%clk 0:00:11]} 52. Re8 {[%clk 0:00:34]}  Rh7 {[%clk 0:00:09]} 53. Kf4 {[%clk 0:00:20]}  Nxa4 {[%clk 0:00:09]} 54. Kg5 {[%clk 0:00:20]}  Nc5 {[%clk 0:00:07]} 55. Kg6 {[%clk 0:00:21]}  Rh1 {[%clk 0:00:04]} 56. Rxe7+ {[%clk 0:00:21]}  Kd8 {[%clk 0:00:05]} 57. f6 {[%clk 0:00:21]}  Rg1+ {[%clk 0:00:04]} 58. Kf7 {[%clk 0:00:21]}  Rh1 {[%clk 0:00:02]} 59. Ra7 {[%clk 0:00:20]}  Re1 {[%clk 0:00:01]} 60. Ra8+ {[%clk 0:00:20]}  Kc7 {[%clk 0:00:02]} 61. Rh8 {[%clk 0:00:18]}  Rg1 {[%clk 0:00:02]} 62. Rh7 {[%clk 0:00:18]}  a4 {[%clk 0:00:01]} 63. Ke7 {[%clk 0:00:18]}  a3 {[%clk 0:00:01]} 64. Rh2 {[%clk 0:00:18]} 1-0


[Site "https://www.chess.com"]

[Event "Titled Tuesday Blitz February 28 Late 2023"]
[White "WindWhistler11"]
[Black "Lopez Del Alamo, Antonio"]
[BlackFideId "2227339"]
[WhiteElo "2523"]
[BlackElo "2175"]
[Result "0-1"]
[Round "07"]
[TimeControl "180+2"]
[Date "2023.02.28"]
[WhiteClock "0:00:04"]
[BlackClock "0:00:36"]

1. b4 {[%clk 0:02:53]}  Nf6 {[%clk 0:02:58]} 2. Bb2 {[%clk 0:02:51]}  g6 {[%clk 0:02:58]} 3. e3 {[%clk 0:02:51]}  Bg7 {[%clk 0:02:58]} 4. Nf3 {[%clk 0:02:51]}  O-O {[%clk 0:02:58]} 5. c4 {[%clk 0:02:50]}  d6 {[%clk 0:02:56]} 6. d4 {[%clk 0:02:49]}  Nbd7 {[%clk 0:02:53]} 7. b5 {[%clk 0:02:45]}  e5 {[%clk 0:02:46]} 8. Be2 {[%clk 0:02:45]}  e4 {[%clk 0:02:44]} 9. Nfd2 {[%clk 0:02:45]}  Re8 {[%clk 0:02:45]} 10. Nc3 {[%clk 0:02:45]}  Nf8 {[%clk 0:02:43]} 11. g4 {[%clk 0:02:39]}  h6 {[%clk 0:02:40]} 12. h4 {[%clk 0:02:39]}  N8h7 {[%clk 0:02:27]} 13. Rg1 {[%clk 0:02:17]}  g5 {[%clk 0:02:25]} 14. Qc2 {[%clk 0:02:14]}  Qe7 {[%clk 0:02:23]} 15. O-O-O {[%clk 0:01:50]}  gxh4 {[%clk 0:02:21]} 16. Rde1 {[%clk 0:01:30]}  Ng5 {[%clk 0:02:16]} 17. f4 {[%clk 0:01:24]}  exf3 {[%clk 0:02:12]} 18. Bxf3 {[%clk 0:01:22]}  c6 {[%clk 0:01:45]} 19. bxc6 {[%clk 0:01:13]}  bxc6 {[%clk 0:01:44]} 20. Bxc6 {[%clk 0:01:09]}  Bb7 {[%clk 0:01:43]} 21. Bxe8 {[%clk 0:01:08]}  Rxe8 {[%clk 0:01:41]} 22. d5 {[%clk 0:01:02]}  h3 {[%clk 0:01:29]} 23. e4 {[%clk 0:01:00]}  h2 {[%clk 0:01:25]} 24. Rg2 {[%clk 0:00:53]}  Bc8 {[%clk 0:01:25]} 25. e5 {[%clk 0:00:49]}  dxe5 {[%clk 0:01:22]} 26. Rxh2 {[%clk 0:00:46]}  Nxg4 {[%clk 0:01:22]} 27. Rg2 {[%clk 0:00:43]}  f5 {[%clk 0:01:22]} 28. Nb5 {[%clk 0:00:38]}  Bd7 {[%clk 0:01:20]} 29. Ba3 {[%clk 0:00:35]}  Qf6 {[%clk 0:01:10]} 30. Nd6 {[%clk 0:00:29]}  Rb8 {[%clk 0:01:06]} 31. c5 {[%clk 0:00:18]}  e4 {[%clk 0:01:04]} 32. c6 {[%clk 0:00:15]}  Qa1+ {[%clk 0:00:42]} 33. Nb1 {[%clk 0:00:15]}  Nf3 {[%clk 0:00:39]} 34. Ree2 {[%clk 0:00:04]}  Nd4 {[%clk 0:00:36]} 0-1


[Site "https://www.chess.com"]

[Event "Titled Tuesday Blitz February 28 Late 2023"]
[White "Kovalevsky, Stanislav"]
[Black "Chabris, Christopher"]
[WhiteFideId "13508598"]
[BlackFideId "2005263"]
[WhiteElo "2220"]
[BlackElo "2256"]
[Result "1-0"]
[Round "07"]
[TimeControl "180+2"]
[Date "2023.02.28"]
[WhiteClock "0:00:06"]
[BlackClock "0:00:01"]

1. c4 {[%clk 0:03:00]}  e5 {[%clk 0:02:59]} 2. Nc3 {[%clk 0:03:00]}  Nf6 {[%clk 0:02:59]} 3. g3 {[%clk 0:02:59]}  Bb4 {[%clk 0:02:59]} 4. Bg2 {[%clk 0:02:59]}  Bxc3 {[%clk 0:02:58]} 5. dxc3 {[%clk 0:03:00]}  Nc6 {[%clk 0:02:58]} 6. e4 {[%clk 0:03:01]}  d6 {[%clk 0:02:56]} 7. Qe2 {[%clk 0:03:02]}  h6 {[%clk 0:02:53]} 8. Nf3 {[%clk 0:03:01]}  Be6 {[%clk 0:02:53]} 9. Nd2 {[%clk 0:03:01]}  Qd7 {[%clk 0:02:48]} 10. Nf1 {[%clk 0:02:52]}  Na5 {[%clk 0:02:32]} 11. Ne3 {[%clk 0:02:49]}  a6 {[%clk 0:02:32]} 12. b3 {[%clk 0:02:44]}  b5 {[%clk 0:02:30]} 13. cxb5 {[%clk 0:02:30]}  axb5 {[%clk 0:02:24]} 14. Bb2 {[%clk 0:02:30]}  O-O {[%clk 0:02:11]} 15. O-O {[%clk 0:02:29]}  Bh3 {[%clk 0:02:05]} 16. Bxh3 {[%clk 0:02:28]}  Qxh3 {[%clk 0:02:05]} 17. Qxb5 {[%clk 0:02:28]}  Nxe4 {[%clk 0:01:57]} 18. Qd5 {[%clk 0:01:33]}  Nf6 {[%clk 0:01:36]} 19. Qg2 {[%clk 0:01:33]}  Qd7 {[%clk 0:01:29]} 20. b4 {[%clk 0:01:30]}  Nc6 {[%clk 0:01:29]} 21. a4 {[%clk 0:01:29]}  d5 {[%clk 0:01:21]} 22. Rfd1 {[%clk 0:01:23]}  e4 {[%clk 0:01:13]} 23. b5 {[%clk 0:00:56]}  Ne5 {[%clk 0:01:12]} 24. c4 {[%clk 0:00:57]}  Nf3+ {[%clk 0:01:10]} 25. Kh1 {[%clk 0:00:54]}  d4 {[%clk 0:01:03]} 26. Nc2 {[%clk 0:00:42]}  d3 {[%clk 0:01:03]} 27. Bxf6 {[%clk 0:00:42]}  gxf6 {[%clk 0:00:36]} 28. Ne1 {[%clk 0:00:37]}  Nxe1 {[%clk 0:00:29]} 29. Rxe1 {[%clk 0:00:38]}  f5 {[%clk 0:00:29]} 30. g4 {[%clk 0:00:38]}  fxg4 {[%clk 0:00:20]} 31. Rxe4 {[%clk 0:00:37]}  f5 {[%clk 0:00:19]} 32. Re5 {[%clk 0:00:28]}  Qd4 {[%clk 0:00:10]} 33. Qd5+ {[%clk 0:00:21]}  Qxd5+ {[%clk 0:00:10]} 34. Rxd5 {[%clk 0:00:21]}  Rad8 {[%clk 0:00:10]} 35. a5 {[%clk 0:00:17]}  Rxd5 {[%clk 0:00:09]} 36. cxd5 {[%clk 0:00:18]}  Re8 {[%clk 0:00:07]} 37. Kg2 {[%clk 0:00:16]}  d2 {[%clk 0:00:06]} 38. Rd1 {[%clk 0:00:15]}  Ra8 {[%clk 0:00:06]} 39. a6 {[%clk 0:00:15]}  Kf7 {[%clk 0:00:04]} 40. Rxd2 {[%clk 0:00:15]}  Kf6 {[%clk 0:00:05]} 41. Re2 {[%clk 0:00:15]}  f4 {[%clk 0:00:05]} 42. Re6+ {[%clk 0:00:14]}  Kf5 {[%clk 0:00:04]} 43. Rc6 {[%clk 0:00:14]}  f3+ {[%clk 0:00:04]} 44. Kg3 {[%clk 0:00:14]}  Re8 {[%clk 0:00:02]} 45. Rxc7 {[%clk 0:00:13]}  Re1 {[%clk 0:00:02]} 46. Rf7+ {[%clk 0:00:08]}  Kg6 {[%clk 0:00:02]} 47. Rf8 {[%clk 0:00:07]}  h5 {[%clk 0:00:01]} 48. Kf4 {[%clk 0:00:06]} 1-0


[Site "https://www.chess.com"]

[Event "Titled Tuesday Blitz February 28 Late 2023"]
[White "Urbina Perez, Juan Antonio"]
[Black "Kovacs, Klara"]
[WhiteFideId "2217368"]
[BlackFideId "733210"]
[WhiteElo "2197"]
[BlackElo "2179"]
[Result "1/2-1/2"]
[Round "07"]
[TimeControl "180+2"]
[Date "2023.02.28"]
[WhiteClock "0:00:32"]
[BlackClock "0:01:37"]

1. e4 {[%clk 0:03:00]}  e6 {[%clk 0:02:48]} 2. Qe2 {[%clk 0:02:57]}  d5 {[%clk 0:02:49]} 3. exd5 {[%clk 0:02:56]}  Qxd5 {[%clk 0:02:46]} 4. Nc3 {[%clk 0:02:57]}  Qd8 {[%clk 0:02:45]} 5. Nf3 {[%clk 0:02:52]}  c5 {[%clk 0:02:45]} 6. g3 {[%clk 0:02:46]}  Nf6 {[%clk 0:02:45]} 7. Bg2 {[%clk 0:02:46]}  Be7 {[%clk 0:02:45]} 8. O-O {[%clk 0:02:46]}  O-O {[%clk 0:02:45]} 9. Ne5 {[%clk 0:02:42]}  Nbd7 {[%clk 0:02:44]} 10. d3 {[%clk 0:02:40]}  Nxe5 {[%clk 0:02:40]} 11. Qxe5 {[%clk 0:02:41]}  Bd6 {[%clk 0:02:41]} 12. Qe2 {[%clk 0:02:38]}  e5 {[%clk 0:02:40]} 13. Bg5 {[%clk 0:02:36]}  h6 {[%clk 0:02:40]} 14. Bxf6 {[%clk 0:02:36]}  Qxf6 {[%clk 0:02:39]} 15. Ne4 {[%clk 0:02:36]}  Qe7 {[%clk 0:02:39]} 16. Nxd6 {[%clk 0:02:36]}  Qxd6 {[%clk 0:02:40]} 17. b3 {[%clk 0:02:36]}  Rb8 {[%clk 0:02:39]} 18. Rae1 {[%clk 0:02:33]}  f6 {[%clk 0:02:38]} 19. f4 {[%clk 0:02:28]}  exf4 {[%clk 0:02:38]} 20. Rxf4 {[%clk 0:02:27]}  Bd7 {[%clk 0:02:38]} 21. Re4 {[%clk 0:02:22]}  Bc6 {[%clk 0:02:36]} 22. Re6 {[%clk 0:02:21]}  Qd4+ {[%clk 0:02:36]} 23. Kh1 {[%clk 0:02:17]}  Bxg2+ {[%clk 0:02:35]} 24. Kxg2 {[%clk 0:02:18]}  Kh8 {[%clk 0:02:27]} 25. Qe4 {[%clk 0:02:15]}  Qc3 {[%clk 0:02:27]} 26. Re2 {[%clk 0:02:14]}  f5 {[%clk 0:02:26]} 27. Qe5 {[%clk 0:02:08]}  Qxe5 {[%clk 0:02:25]} 28. R2xe5 {[%clk 0:02:09]}  b6 {[%clk 0:02:25]} 29. Re7 {[%clk 0:02:08]}  Ra8 {[%clk 0:02:24]} 30. Rc7 {[%clk 0:02:03]}  f4 {[%clk 0:02:24]} 31. Ree7 {[%clk 0:01:59]}  fxg3 {[%clk 0:02:20]} 32. Rxg7 {[%clk 0:01:57]}  Rf2+ {[%clk 0:02:13]} 33. Kxg3 {[%clk 0:01:54]}  Rxc2 {[%clk 0:02:13]} 34. Rh7+ {[%clk 0:01:52]}  Kg8 {[%clk 0:02:13]} 35. Rcg7+ {[%clk 0:01:50]}  Kf8 {[%clk 0:02:13]} 36. Rxa7 {[%clk 0:01:28]}  Rxa7 {[%clk 0:02:11]} 37. Rxa7 {[%clk 0:01:29]}  Rd2 {[%clk 0:02:11]} 38. Rb7 {[%clk 0:01:28]}  Rxd3+ {[%clk 0:02:09]} 39. Kh4 {[%clk 0:01:28]}  Rd2 {[%clk 0:02:09]} 40. h3 {[%clk 0:01:19]}  Rxa2 {[%clk 0:01:57]} 41. Rxb6 {[%clk 0:01:18]}  Kg7 {[%clk 0:01:58]} 42. Kh5 {[%clk 0:01:18]}  Rh2 {[%clk 0:01:53]} 43. h4 {[%clk 0:01:18]}  Rh3 {[%clk 0:01:53]} 44. Rb7+ {[%clk 0:01:14]}  Kf6 {[%clk 0:01:52]} 45. Rb6+ {[%clk 0:01:12]}  Ke5 {[%clk 0:01:49]} 46. Kg4 {[%clk 0:01:03]}  Rd3 {[%clk 0:01:45]} 47. Kh5 {[%clk 0:00:59]}  Rh3 {[%clk 0:01:44]} 48. b4 {[%clk 0:00:52]}  c4 {[%clk 0:01:44]} 49. Rc6 {[%clk 0:00:50]}  Kd5 {[%clk 0:01:43]} 50. Rxh6 {[%clk 0:00:40]}  c3 {[%clk 0:01:41]} 51. Rh8 {[%clk 0:00:41]}  Kc4 {[%clk 0:01:38]} 52. b5 {[%clk 0:00:32]}  Kxb5 {[%clk 0:01:38]} 53. Rc8 {[%clk 0:00:32]}  Kb4 {[%clk 0:01:36]} 54. Kg4 {[%clk 0:00:32]}  Rh1 {[%clk 0:01:35]} 55. h5 {[%clk 0:00:32]}  Kb3 {[%clk 0:01:35]} 56. Kg5 {[%clk 0:00:31]}  c2 {[%clk 0:01:35]} 57. h6 {[%clk 0:00:31]}  c1=Q+ {[%clk 0:01:35]} 58. Rxc1 {[%clk 0:00:30]}  Rxc1 {[%clk 0:01:36]} 59. h7 {[%clk 0:00:30]}  Rh1 {[%clk 0:01:36]} 60. Kg6 {[%clk 0:00:31]}  Kc4 {[%clk 0:01:37]} 61. Kg7 {[%clk 0:00:31]}  Rg1+ {[%clk 0:01:37]} 62. Kf8 {[%clk 0:00:31]}  Rh1 {[%clk 0:01:37]} 63. Kg7 {[%clk 0:00:31]}  Rg1+ {[%clk 0:01:37]} 64. Kf8 {[%clk 0:00:32]}  Rh1 {[%clk 0:01:37]} 65. Kg7 {[%clk 0:00:32]} 1/2-1/2


[Site "https://www.chess.com"]